Cogmind - Beta 16 @@@ ROGUE MODE // 2026.02.01 @ 23:36:15 Player: Megaknight51 Result: Destroyed by G-34 Mercenary with Small Laser Performance ------------- Evolutions (0) 0 Regions Visited (1) 200 Robots Destroyed (18) 90 Value Destroyed (229) 229 Prototype IDs (2) 40 Alien Tech Used (0) 0 Bonus (0) 0 TOTAL SCORE: 559 Bonus ------- None Cogmind --------- Core Integrity 0/250 Matter 300/300 Energy 98/100 System Corruption 2% Temperature Cool (6) Movement Treading (400) Ox3 Location -10/Materials Parts ------- > --- POWER (1) -------- (None) > --- PROPULSION (2) --- Light Treads > --- UTILITY (2) ------ Huge Storage Unit > --- WEAPON (2) ------- (None) > --- INVENTORY (25) --- Light Ion Engine Small Storage Unit Improved Terrain Scanner Seismic Detector Hacking Suite Peak State ------------ > --- POWER ------------ Light Nuclear Core > --- PROPULSION ------- Light Treads Light Treads > --- UTILITY ---------- Small Storage Unit Transport Network Coupler > --- WEAPON ----------- Light Assault Rifle Light Assault Rifle > --- INVENTORY -------- Ion Engine Light Ion Engine Light Treads Improved Terrain Scanner Seismic Detector Hacking Suite [Rating: 10] Favorites ----------- Power Light Ion Engine Engine Light Ion Engine Power Core Light Nuclear Core Propulsion Light Treads Treads Light Treads Utility Small Storage Unit Device Seismic Detector Storage Small Storage Unit Processor Transport Network Coupler Protection Light Armor Plating Weapon Light Assault Rifle Energy Gun Medium Laser Ballistic Gun Light Assault Rifle Build | -11 -10 ------- Run | Yrd Mat Slots Evolved . | . . Power . | . . Propulsion . | . . Utility . | . . Weapon . | . . Parts Attached 15 | 9 6 Power 3 | 1 2 Engine 2 | 1 1 Core 1 | . 1 Reactor . | . . Propulsion 3 | 2 1 Treads 3 | 2 1 Leg . | . . Wheel . | . . Hover . | . . Flight . | . . Utility 6 | 3 3 Device 2 | 2 . Storage 2 | 1 1 Processor 1 | . 1 Hackware . | . . Protection 1 | . 1 Artifact . | . . Weapon 3 | 3 . Energy Gun 1 | 1 . Energy Cannon . | . . Ballistic Gun 2 | 2 . Ballistic Cannon . | . . Launcher . | . . Special Weapon . | . . Impact Weapon . | . . Slashing Weapon . | . . Piercing Weapon . | . . Special Melee Weapon . | . . Unidentified Prototypes . | . . Parts Lost 7 | . 7 Power 2 | . 2 Propulsion 2 | . 2 Utility 1 | . 1 Weapon 2 | . 2 Highest Loss Streak 6 | . 6 To Critical Strikes . | . . Average Backups 3 | 1 4 Power 1 | . 1 Propulsion . | . . Utility 2 | . 2 Weapon . | . . Tool/Special . | . . Unused Backups 2 | . 2 Power . | . . Propulsion . | . . Utility 2 | . 2 Weapon . | . . Tool/Special . | . . Average Slot Usage (%) 97 | . 97 Engine 7 | . 7 Core 6 | . 6 Treads 27 | . 27 Device 4 | . 4 Storage 14 | . 14 Processor 8 | . 8 Ballistic Gun 26 | . 26 Peak Build Rating 10 | 9 10 Average Rating 7 | 6 8 On Entrance 3 | . 7 Avg Prop Armor Cover (%) . | . . Naked Turns . | . . Heaviest Build 88 | 11 88 Greatest Support 40 | 40 40 Greatest Overweight (x) 4 | . 4 Average Overweight (x) . | . . Largest Inventory Capacity 25 | 8 25 Average Capacity 12 | 7 14 Most Carried 7 | 3 7 Average Carried 3 | 1 4 Final Capacity 25 | 8 25 Final Carried 5 | 2 5 Class Distribution -------------------- 100% | Mutant Dominant Class ---------------- Mutant | -10/Materials Resources | -11 -10 ----------- Run | Yrd Mat Matter Collected 497 | 354 143 Remotely . | . . Salvage Created 451 | 192 259 Parts 41 | 13 28 Haulers Intercepted 1 | . 1 Recyclers Shooed 1 | . 1 Parts Field Recycled . | . . Retrieved Matter . | . . Parts Self-Destructed . | . . Prevented . | . . Parts Restored . | . . Kills | -11 -10 ------- Run | Yrd Mat Combat Hostiles Destroyed 9 | . 9 Guns 9 | . 9 Classes Destroyed 7 | 3 4 Worker 2 | 2 . Tunneler 4 | 4 . Hauler 1 | . 1 Recycler 1 | 1 . Operator 1 | . 1 Swarmer 6 | . 6 Grunt 3 | . 3 Best Kill Streak 5 | 4 5 Combat Bots Only 4 | . 4 Max Kills in Single Turn 1 | 1 1 Gunslinging . | . . Exploded . | . . Melee . | . . Uniques/NPCs Destroyed . | . . Combat | -11 -10 -------- Run | Yrd Mat Hostile Shots Fired 132 | . 132 Missed 26 | . 26 Hits 106 | . 106 Projectile 106 | . 106 Damage Taken 1081 | . 1081 Core 253 | . 253 Absorbed by Shields . | . . Core Remaining (%) 100 | 100 . Volleys Fired 92 | 39 53 Largest 2 | 2 2 Hottest 40 | 40 40 Shots Fired 175 | 78 97 Gun 175 | 78 97 Cannon . | . . Launcher . | . . Special . | . . Kinetic 175 | 78 97 Thermal . | . . Explosive . | . . Electromagnetic . | . . Robot Hit Streak 13 | 10 13 Robot Miss Streak 6 | 5 6 Penetration Max . | . . Secondary Targets 1 | . 1 Max Gunslinging Chain 1 | . 1 Shots Hit Robots 101 | 51 50 Core Hits 41 | 15 26 Critical Kills . | . . Critical Parts Destroyed 1 | 1 . Critical Strikes 1 | 1 . Destroy 1 | 1 . Melee Attacks . | . . Impact . | . . Slashing . | . . Piercing . | . . Sneak Attacks . | . . Combat Hostiles . | . . Follow-up Attacks . | . . Damage Inflicted 853 | 397 456 Guns 848 | 397 451 Cannons . | . . Explosions . | . . Melee . | . . Ramming 5 | . 5 Kinetic 848 | 397 451 Thermal . | . . Explosive . | . . Electromagnetic . | . . Impact . | . . Slashing . | . . Piercing . | . . Highest Corruption 2 | . 2 Average Corruption 2 | . 2 Corruption Purged . | . . Corruption Blocked . | . . Effects 3 | . 3 Message Errors 2 | . 2 Energy Discharges 1 | . 1 Overload Shots . | . . Overflow Damage . | . . Projectiles . | . . Explosions . | . . Melee . | . . Knockbacks . | . . Impact . | . . Kinetic . | . . Secondary . | . . Self-Inflicted Damage . | . . Shots . | . . Rammed 3 | . 3 Targets Rammed 3 | . 3 Kicked . | . . Crushed . | . . Highest Temperature 30 | . 30 Average Temperature 7 | . 7 Received Heat Transfer 423 | . 423 Siege Activations . | . . Martial Activations . | . . Shielding Activations . | . . Robots Disrupted . | . . Combat Hostiles . | . . Robots Corrupted . | . . Combat Hostiles . | . . Parts Fried . | . . Impact Corruptions . | . . Robots Melted . | . . Combat Hostiles . | . . Parts Melted . | . . Heat Transferred . | . . Parts Sabotaged . | . . Parts Stolen . | . . Parts Stripped . | . . Power Chain Reactions . | . . Alert | -11 -10 ------- Run | Yrd Mat Maximum Alert Level . | . . Low Security (%) 100 | 100 100 Level 1 . | . . Level 2 . | . . Level 3 . | . . Level 4 . | . . Level 5 . | . . High Security . | . . Max Security . | . . Peak Influence 77 | 15 77 Initial . | . . Average 14 | 1 19 Influence Increases 276 | 35 241 Destroy 0b10 Robot/C 180 | . 180 Destroy 0b10 Robot/NC 45 | 35 10 Destroy Leader 32 | . 32 Successful Hack 19 | . 19 Influence Decreases 276 | 35 241 Time Decay 266 | 35 231 Lost Part 10 | . 10 Squads Dispatched 2 | . 2 Investigation 2 | . 2 Extermination . | . . Reinforcement . | . . Assault . | . . Garrison . | . . Intercept . | . . Searches Triggered . | . . Construction Impeded . | . . Haulers Reinforced . | . . Active Scanning Responses . | . . Cargo Convoy Interrupts . | . . Stealth | -11 -10 --------- Run | Yrd Mat Distress Signals . | . . Communications Jammed . | . . Distress Signals . | . . Times Spotted 18 | . 18 Peak Tracking Total 5 | . 5 Tactical Retreats . | . . Traps | -11 -10 ------- Run | Yrd Mat Traps Triggered 3 | . 3 Indirectly . | . . Trap Hack Attempts . | . . Triggered . | . . Disarmed . | . . Reprogrammed . | . . Reused . | . . Traps Extracted . | . . Installed . | . . Triggered . | . . Machines | -11 -10 ---------- Run | Yrd Mat Machines Disabled . | . . Max in Single Turn . | . . Machines Repaired . | . . Machines Dismantled . | . . Machines Sabotaged . | . . Overloaded Fab Kills . | . . Hacking | -11 -10 --------- Run | Yrd Mat Machines Accessed 4 | . 4 Terminals 4 | . 4 Fabricators . | . . Repair Stations . | . . Recycling Units . | . . Scanalyzers . | . . Garrison Access . | . . Total Hacks 14 | . 14 Successful 7 | . 7 Failed 7 | . 7 Catastrophic 2 | . 2 Database Lockouts . | . . Manual 10 | . 10 Terminals 14 | . 14 Fabricators . | . . Repair Stations . | . . Recycling Units . | . . Scanalyzers . | . . Garrison Access . | . . Terminal Hacks 7 | . 7 Robot Schematic 2 | . 2 Prototype ID Bank 1 | . 1 Emergency Access Points 1 | . 1 Terminal Index 1 | . 1 Hauler Manifests 1 | . 1 Registered Components 1 | . 1 Fabricator Hacks . | . . Repair Station Hacks . | . . Recycling Unit Hacks . | . . Scanalyzer . | . . Garrison Access Hacks . | . . Unauthorized Hacks . | . . Terminals . | . . Fabricators . | . . Repair Stations . | . . Recycling Units . | . . Scanalyzers . | . . Garrison Access . | . . Data Cores Recovered . | . . Used . | . . Hacking Detections 4 | . 4 Full Trace Events 2 | . 2 Feedback Events . | . . Feedback Blocked . | . . Robot Schematics Acquired 2 | . 2 Robots Built . | . . Authchips . | . . Time . | . . Total Robot Build Rating . | . . Part Schematics Acquired . | . . Parts Built . | . . Authchips . | . . Time . | . . Total Part Build Rating . | . . Part Studies Acquired . | . . Parts Repaired . | . . Time . | . . Parts Recycled . | . . Recycled Matter . | . . Retrieved Matter . | . . Retrieved Components . | . . Parts Scanalyzed . | . . Part Schematics Acquired . | . . Parts Damaged . | . . Bothacking | -11 -10 ------------ Run | Yrd Mat Used RIF Installer . | . . Robots Hacked . | . . Non-combat . | . . Combat . | . . Robot Hacks Applied . | . . Relay Couplers Released . | . . Fabnet Peak Effective % . | . . Robots Rewired . | . . Allies Hacked . | . . Hacks Repelled . | . . Allies | -11 -10 -------- Run | Yrd Mat Total Allies . | . . Largest Group . | . . Highest-Rated Group . | . . Highest-Rated Ally . | . . Total Orders . | . . Ally Attacks . | . . Total Damage . | . . Kills . | . . Allies Corrupted . | . . Allies Melted . | . . Intel | -11 -10 ------- Run | Yrd Mat Active Infowar (turns) 814 | 66 748 Terrain 26 | 26 . Seismic 274 | 40 234 T.N.C. 514 | . 514 Robot Analysis Total . | . . Derelict Logs Recovered . | . . Drone Launches . | . . Drone Recoveries . | . . Exploration | -11 -10 ------------- Run | Yrd Mat Turns Passed 1126 | 310 816 Spaces Moved 422 | 123 299 Core 3 | 3 . Treads 419 | 120 299 Legs . | . . Wheels . | . . Hover . | . . Flight . | . . Fastest Speed 50 | 50 160 Average Speed 184 | 157 195 Slowest Speed 480 | 160 480 Overloaded Moves . | . . Propulsion Burnouts . | . . Robots Hopped . | . . Potential Cave-ins . | . . Cave-ins Triggered . | . . Exploration Rate (%) 28 | 6 50 Regions Visited 1 Branch Regions . Pre-discovered Areas . | . . Known Exits Taken . | . . Unknown Exits Taken 1 | 1 . Scrap Searched . | . . Spaces Dug . | . . Terrain Destroyed . | . . Melee . | . . Projectile . | . . AOE . | . . Terrain Rammed . | . . Walls Destroyed . | . . Machines Disabled . | . . Actions | -11 -10 --------- Run | Yrd Mat Total 618 | 174 444 Wait 78 | . 78 Move 421 | 122 299 Hop . | . . Pick Up 5 | 2 3 Fast Attach 10 | 8 2 Attach 2 | . 2 Detach 3 | 1 2 Swap 3 | 1 2 Drop 1 | 1 . Fire 92 | 39 53 Melee . | . . Ram . | . . Kick . | . . Crush 3 | . 3 Escape Stasis . | . . Rewire . | . . Trap . | . . Miscellaneous . | . . Route ------- -11/Scrapyard -10/Materials (discovered 1 exit: [*Min]) History --------- Turn | Location | Event 37 | -11/Scrapyard | Discovered new exit (range 16) 311 | -11/Scrapyard | Entered Materials 312 | -10/Materials | Build established: Mutant 735 | -10/Materials | Discovered new exit (range 15) 1092 | -10/Materials | Core integrity fell below 50% 1117 | -10/Materials | Core integrity fell below 20% 1127 | -10/Materials | Destroyed by G-34 Mercenary with Small Laser Last Messages --------------- 01048_ U-05 Engineer lays Concrete. 01050_ Triggered Alarm Trap. 01050_ An alarm sounds. 01050_ ALERT: Alarm triggered, dispatching investigation squad. 01051_ U-05 Engineer lays Concrete. 01059_ T0R SVDD EADAV=4QG5O XZO0: 01061_ Discarded Transport Network Coupler. 01071_ Acquired Lgt. Armor Plating. 01083_ Lgt. Assault Rifle destroyed. 01091_ E2VPHFGN,SEYHJ LT3TIG4V#LLXYWH#AC434IIZ 01093_ Lgt. Treads destroyed. 01100_ Lgt. Assault Rifle destroyed. 01102_ G-34 Mercenary destroyed. 01110_ Acquired 29 matter. 01114_ Lgt. Armor Plating destroyed. 01114_ Slammed into G-34 Mercenary. 01118_ Ion Engine destroyed. 01119_ Slammed into G-34 Mercenary. 01122_ System corrupted: Energy discharge (-25). 01125_ K-01 Serf collects debris. Map ----- +----------------------------------------------------+ | " # ############ #?????????????????????????? | | # % ###??????????# #?????????????????????????? | | # %#????????????# #?????????????????????????? | | ### #????????###?# #?????????????????????????? | | ??# #???????##! ## ##????????????????????????? | | ??# #???????#! ######???????????????????? | | ??# %#???????#! # #???????????????????? | | ###% #???????#! T + = #???????????????????? | | ^ !#???????#! # #???????????????????? | | #???????##! # #???????????????????? | | ^ #????????###### ### ! + ?????????????????? | | #?????????????# #?# # #???????????????? | | +## #########?????# #?#| #? #???????????????? | | # # #?????# #?# #?? #???????????????? | | T # # """ #?????# #?# #???????????????????? | | + + """ #######+########???????????????????? | | # # """ ## #???????????????????? | | # # ## """ "T" #???????????????????? | | # ########## !! """ #???????????????????? | | ### ########## !! """ #???????????????????? | | ??# # / +?# !! #???#???????????????? | | ??# # * #?# #? #######?????????? | | ??# # #?###########+### ???????? | | ??# # !!! #???# # ???????? | | ??# # !!! #???# !# r ???????? | | ??# / ! #???# =gg@ "" ######??????????? | | ### ########???# %g#au"Y #???????????????? | | # #??????????# "" # "" #???????????????? | | /# #??????????#! """# = #???????????????? | | %# #####??????# R"# #???????????????? | | % + # #??????# """# #???????????????? | | *=# # #??????# # """" #???????????????? | | [=# # ############### """" #???????????????? | | # #" ## #??????# """"k #???????????????? | | # #T ## #??????# #???????????????? | | ### #" ## " #??????# ?? T???????????????? | | # # ## """ #??????? "???? #???????????????? | | # ##+### """ #??????? "?????#???????????????? | | # # """ #??????? "?????????????????????? | | # + "" #??????? ??????????????????????? | | + # """ #??????? ??????????????????????? | | # ## ### "" #???????????????????????????????? | | # # ## """ #???????????????????????????????? | | ##### ## " #???????????????????????????????? | | #???# ## #???????????????????????????????? | | ###???# ########???????????????????????????????? | | ??????# #??????????????????????????????????????? | | ??????# #??????????????????????????????????????? | | ??????# #??????????????????????????????????????? | | ???????###???????????????????????????????????????? | +----------------------------------------------------+ Best States ------------- Heat Dissipation 25 Energy Generation 14 Energy Capacity 250 Matter Stores 300 Matter Capacity 300 Sight Range 16 Terrain Scan Range 16 Terrain Scan Density 10 Armor Coverage 150 Evasion (%) 40 Recoil Reduction 2 Item Schematics ----------------- None Robot Schematics ------------------ O-16 Technician | -10/Materials | Hacked M-13 Machinist | -10/Materials | Hacked Fabricated ------------ Nothing Repaired ---------- Nothing Studied --------- None Alien Tech Used ----------------- None Achievements -------------- None Challenges ------------ None Game ------ Seed BlastRestorationBoomstick Manual? 0 Play Time 00:05:13 Cumulative 38.5 hours Start 2026.02.01 @ 23:31:16 End 2026.02.01 @ 23:36:15 Sessions 1 Manual Loads 0 Difficulty Rogue Special Mode None Game No. 81 Rogue 81 Adventurer 0 Explorer 0 Win Type - Total 0 Types 0/0/0/0/0/0/0/0/0/0 Lore% 18 Gallery% 24 Achievement% 21 Wizard Run 0 Options --------- Layout 0 ASCII 0 Keyboard 1 Movement Arrows Keybinds 0 Fullscreen 1 Font 18/Smallcaps Map View 38x25 Zoom Use 100% Tactical HUD 1 Map Filters NONE Filters NONE Steam 1 RUN: 71eb7a48-455c-4076-b75d-d444915b6710